bitfinex/quotes_BTCUSD_20241211
["timestamp","ask_amount","ask_price","bid_price","bid_amount"]
[1733922213265,0.48114798,98321.0,98320.0,0.15336435]
[1733922213483,0.39006696,98321.0,98320.0,0.15336435]
[1733922213936,0.38806696,98321.0,98320.0,0.01332435]
[1733922214165,0.38706696,98321.0,98320.0,0.01332435]
[1733922214416,0.38906696,98321.0,98320.0,0.02144411]
[1733922214853,0.38706696,98321.0,98320.0,0.02144411]
[1733922215068,0.39006696,98321.0,98320.0,0.02144411]
[1733922215286,0.38506696,98321.0,98320.0,0.02144411]
[1733922215737,0.38506696,98321.0,98320.0,0.16148411]
[1733922215738,0.38706696,98321.0,98320.0,0.16148411]
[1733922215953,0.38506696,98321.0,98320.0,0.16148411]
[1733922216164,0.38606696,98321.0,98320.0,0.16148411]
[1733922216622,0.38506696,98321.0,98320.0,0.16148411]
[1733922217058,0.38606696,98321.0,98320.0,0.02144411]
[1733922217279,0.38706696,98321.0,98320.0,0.02144411]
[1733922217510,0.38506696,98321.0,98320.0,0.02144411]
[1733922217726,0.47612904,98321.0,98320.0,0.01332435]
[1733922217950,0.38806696,98321.0,98320.0,0.02144789]
[1733922218168,0.38806696,98321.0,98320.0,0.01332435]
[1733922218169,0.47713187,98321.0,98320.0,0.01332435]
[1733922218606,0.48113187,98321.0,98320.0,0.01332435]
[1733922218820,0.47713187,98321.0,98320.0,0.01332435]
[1733922219241,0.38906696,98321.0,98320.0,0.01332435]
[1733922219491,0.39106696,98321.0,98320.0,0.01332435]
[1733922219907,0.38906696,98321.0,98320.0,0.01332435]
[1733922220342,0.39106696,98321.0,98320.0,0.01332435]
[1733922220550,0.38706696,98321.0,98320.0,0.01332435]
[1733922220798,0.38506696,98321.0,98320.0,0.01332435]
[1733922221011,0.38906696,98321.0,98320.0,0.01332435]
[1733922221224,0.38706696,98321.0,98320.0,0.01332435]
[1733922221459,0.39006696,98321.0,98320.0,0.01332435]
[1733922222330,0.47813187,98321.0,98320.0,0.01332435]
[1733922222546,0.47613187,98321.0,98320.0,0.01332435]
[1733922222766,0.38706696,98321.0,98320.0,0.01332435]
[1733922223201,0.38506696,98321.0,98320.0,0.01332435]
[1733922223676,0.39006696,98321.0,98320.0,0.01332435]
[1733922223887,0.38706696,98321.0,98320.0,0.01332435]
[1733922224366,0.39006696,98321.0,98320.0,0.01332435]
[1733922225832,0.52666396,98321.0,98320.0,0.01332435]
[1733922226083,0.39006696,98321.0,98320.0,0.01332435]
[1733922227552,0.40710198,98321.0,98320.0,0.01332435]
[1733922227787,0.39006696,98321.0,98320.0,0.01332435]
[1733922228530,0.40852396,98321.0,98320.0,0.01332435]
[1733922229490,0.6368492,98321.0,98320.0,0.01332435]
[1733922229730,0.353433,98312.0,98311.0,0.0004]
[1733922230001,0.40354196,98312.0,98311.0,0.0004]
[1733922230261,0.58563441,98312.0,98311.0,0.0004]
[1733922231019,0.58554807,98312.0,98311.0,0.0004]
[1733922231562,0.59054807,98312.0,98311.0,0.0004]
[1733922232292,0.40845562,98312.0,98311.0,0.0004]
[1733922232766,0.59054807,98312.0,98311.0,0.0004]
[1733922233011,0.59254807,98312.0,98311.0,0.0004]
[1733922233751,0.60660183,98312.0,98311.0,0.0004]
[1733922234019,0.44514392,98312.0,98311.0,0.0004]
[1733922234257,0.44511716,98312.0,98311.0,0.0004]
[1733922234492,0.42668692,98312.0,98311.0,0.0004]
[1733922234715,0.173,98311.0,98300.0,0.0001718]
[1733922234948,0.44446007,98301.0,98300.0,0.0001718]
[1733922235201,0.47610167,98301.0,98300.0,0.0001718]
[1733922235432,0.38510796,98301.0,98300.0,0.0001718]
[1733922235679,0.61261815,98301.0,98300.0,0.0001718]
[1733922235927,0.38510796,98301.0,98300.0,0.0001718]
[1733922236924,0.6124976,98301.0,98300.0,0.0001718]
[1733922237166,0.63787963,98301.0,98300.0,0.0011718]
[1733922237413,0.40648999,98301.0,98300.0,0.0001718]
[1733922237910,0.41748999,98301.0,98300.0,0.0011718]
[1733922238376,0.59929253,98301.0,98300.0,0.0011718]
[1733922238851,0.41748999,98301.0,98300.0,0.0011718]
[1733922239308,0.59924473,98301.0,98300.0,0.0011718]
[1733922240336,0.41748999,98301.0,98300.0,0.0011718]
[1733922241411,0.54581523,98301.0,98300.0,0.0011718]
[1733922241623,0.64882327,98301.0,98300.0,0.0011718]
[1733922241858,0.54581523,98301.0,98300.0,0.0011718]
[1733922242075,0.72756997,98301.0,98300.0,0.0011718]
[1733922242556,0.71349223,98301.0,98300.0,0.0001718]
[1733922242785,0.53881523,98301.0,98300.0,0.0011718]
[1733922243236,0.53481523,98301.0,98300.0,0.0011718]
[1733922243452,0.63991852,98301.0,98300.0,0.0011718]
[1733922243666,0.66229124,98301.0,98300.0,0.0011718]
[1733922243882,0.8893875,98301.0,98300.0,0.0011718]
[1733922244524,0.64391852,98301.0,98300.0,0.0011718]
[1733922244741,0.31582193,98292.0,98291.0,0.0004]
[1733922244955,0.34747389,98292.0,98291.0,0.0004]
[1733922245469,0.47579908,98292.0,98291.0,0.0004]
[1733922245680,0.61197042,98292.0,98291.0,0.0004]
[1733922245893,0.47579908,98292.0,98291.0,0.0004]
[1733922246101,0.47879908,98292.0,98291.0,0.0004]
[1733922246531,0.48079908,98292.0,98291.0,0.0004]
[1733922246740,0.61700592,98292.0,98291.0,0.0004]
[1733922247584,0.48079908,98292.0,98291.0,0.0004]
[1733922248630,0.47843476,98292.0,98291.0,0.0004]
[1733922249727,0.5692193,98292.0,98291.0,0.0004]
[1733922249936,0.57452121,98292.0,98291.0,0.0004]
[1733922250158,0.48373667,98292.0,98291.0,0.0004]
[1733922250606,4.32634601,98292.0,98291.0,0.0004]
[1733922250816,4.18434601,98292.0,98291.0,0.0004]
[1733922251039,4.18434589,98292.0,98291.0,0.0004]
[1733922251248,4.20166996,98292.0,98291.0,0.0004]
[1733922251708,4.29244593,98292.0,98291.0,0.0004]
[1733922251965,4.11656667,98292.0,98291.0,0.0004]
[1733922252177,0.353498,98281.0,98280.0,0.0001718]
[1733922252606,0.3719802,98281.0,98280.0,0.0001718]
[1733922252853,0.40350162,98281.0,98280.0,0.0001718]
[1733922253313,0.40350162,98281.0,98240.0,0.0001718]
[1733922253314,0.15,98270.0,98254.0,0.14004]
[1733922253575,0.15,98254.0,98253.0,0.07960335]
[1733922253776,0.1684822,98254.0,98253.0,0.07960335]
[1733922254407,0.1684822,98254.0,98253.0,0.00120335]
[1733922255236,0.15510368,98254.0,98253.0,0.00120335]
[1733922255681,0.16954598,98254.0,98253.0,0.00120335]
[1733922256104,0.17054598,98254.0,98253.0,0.00120335]
[1733922256532,0.17254598,98254.0,98253.0,0.00120335]
[1733922256782,0.17254598,98254.0,98253.0,0.19034335]
[1733922257273,0.17254598,98254.0,98253.0,0.27014335]
[1733922257734,0.0174423,98254.0,98253.0,0.38092111]
[1733922258708,0.0154423,98254.0,98253.0,0.38092111]
[1733922259175,0.0144423,98254.0,98253.0,0.38192111]
[1733922259415,0.0154423,98254.0,98253.0,0.38092111]
[1733922259672,0.001,98254.0,98253.0,0.38092111]
[1733922259916,0.203552,98255.0,98254.0,0.11077776]
[1733922260154,0.203552,98255.0,98254.0,0.32901776]
[1733922260155,0.15,98255.0,98254.0,0.32901776]
[1733922260388,0.15,98255.0,98254.0,0.32791776]
[1733922262580,0.15,98255.0,98254.0,0.32891776]
[1733922262875,0.15,98255.0,98254.0,0.32791776]
[1733922263113,0.15,98255.0,98254.0,0.32891776]
[1733922263349,0.15,98255.0,98254.0,0.32791776]
[1733922263616,0.15,98255.0,98254.0,0.32891776]
[1733922264809,0.15,98255.0,98254.0,0.32791776]
[1733922265264,0.15,98255.0,98254.0,0.32891776]
[1733922265480,0.15,98255.0,98254.0,0.33530753]
[1733922265948,0.15,98255.0,98254.0,0.33630753]
[1733922266181,0.15,98255.0,98254.0,0.33530753]
[1733922267096,0.15,98255.0,98254.0,0.33630753]
[1733922268485,0.15,98255.0,98254.0,0.19626753]
[1733922268710,0.16842235,98255.0,98254.0,0.33530753]
[1733922269134,0.16842235,98255.0,98254.0,0.33630753]
[1733922269354,0.16842235,98255.0,98254.0,0.33530753]
[1733922269580,0.01842235,98255.0,98254.0,0.33530753]
[1733922269798,0.02042235,98255.0,98254.0,0.33530753]
[1733922270015,0.002,98255.0,98254.0,0.33530753]
[1733922270238,0.005,98255.0,98254.0,0.33530753]
[1733922271622,0.15,98259.0,98258.0,0.22234]
[1733922271837,0.15,98259.0,98258.0,0.33201776]
[1733922272057,0.15,98259.0,98258.0,0.33939953]
[1733922272509,0.01407428,98260.0,98258.0,0.33939953]
[1733922272723,0.01407428,98260.0,98259.0,0.22214]
[1733922272944,0.01407428,98260.0,98259.0,0.22951946]
[1733922273832,0.01407428,98260.0,98259.0,0.38479722]
[1733922273833,8.6e-05,98260.0,98259.0,0.38479722]
[1733922274058,8.6e-05,98260.0,98259.0,0.49012246]
[1733922274944,0.001086,98260.0,98259.0,0.49012246]
[1733922275157,8.6e-05,98260.0,98259.0,0.49012246]
[1733922275391,8.6e-05,98260.0,98259.0,0.49112246]
[1733922280534,8.6e-05,98260.0,98259.0,0.51412246]
[1733922282519,8.6e-05,98260.0,98259.0,0.51207546]
[1733922284266,8.6e-05,98260.0,98259.0,0.81207546]
[1733922284479,0.203462,98298.0,98292.0,0.10967776]
[1733922284696,0.203462,98298.0,98296.0,0.14004]
[1733922284912,0.11903229,98300.0,98299.0,0.14004]
[1733922285132,0.203457,98301.0,98300.0,0.14004]
[1733922285610,0.203457,98301.0,98300.0,0.22884377]
[1733922285825,0.203457,98301.0,98300.0,0.14809888]
[1733922286268,0.37186916,98301.0,98300.0,0.14809888]
[1733922286757,0.38492662,98301.0,98300.0,0.14809888]
[1733922287608,0.03246962,98301.0,98300.0,0.14809888]
[1733922287825,0.01605746,98301.0,98300.0,0.14809888]
[1733922288041,0.01505746,98301.0,98300.0,0.14809888]
[1733922288385,0.01605746,98301.0,98300.0,0.14809888]
[1733922290337,0.01505746,98301.0,98300.0,0.14809888]
[1733922290576,0.01405746,98301.0,98300.0,0.14809888]
[1733922290984,0.01605746,98301.0,98300.0,0.14809888]
[1733922291201,0.01305746,98301.0,98300.0,0.14809888]
[1733922291402,0.001,98301.0,98300.0,0.14809888]
[1733922291644,0.153,98301.0,98300.0,0.14809888]
[1733922291871,0.17141537,98301.0,98300.0,0.14809888]
[1733922292088,0.17141537,98301.0,98300.0,0.25777664]
[1733922292924,0.02141537,98301.0,98300.0,0.25777664]
[1733922293151,0.003,98301.0,98300.0,0.38257664]
[1733922295955,0.003,98301.0,98300.0,0.48790188]
[1733922296410,0.003,98301.0,98300.0,0.51090188]
[1733922296856,0.001,98301.0,98300.0,0.51090188]
[1733922297086,0.01341519,98313.0,98312.0,0.203433]
[1733922297316,0.15,98322.0,98312.0,0.39240727]
[1733922297535,0.15,98322.0,98318.0,0.10967776]
[1733922297536,0.203413,98322.0,98318.0,0.10967776]
[1733922297772,0.1685189,98321.0,98319.0,0.0074329]
[1733922298190,0.1685189,98321.0,98318.0,0.10967776]
[1733922298645,0.1685189,98321.0,98319.0,0.0074329]
[1733922298854,0.1734459,98321.0,98318.0,0.10967776]
[1733922299093,0.1734459,98321.0,98319.0,0.0074329]
[1733922299382,0.1734459,98321.0,98318.0,0.10967776]
[1733922299585,0.0234459,98321.0,98318.0,0.10967776]
[1733922299817,0.0234459,98321.0,98319.0,0.0074329]
[1733922299818,0.353417,98320.0,98319.0,0.0074329]
[1733922300044,0.3718629,98320.0,98319.0,0.0074329]
[1733922300247,0.1684459,98320.0,98319.0,0.0074329]
[1733922300449,0.15,98320.0,98319.0,0.0074329]
[1733922300660,0.002,98321.0,98319.0,0.38585066]
[1733922300661,0.005,98321.0,98319.0,0.38585066]
[1733922300876,0.00474442,98321.0,98320.0,0.55947701]
[1733922301096,0.00474442,98321.0,98320.0,0.64467417]
[1733922301522,8.59e-05,98330.0,98329.0,0.10967776]
[1733922301745,8.59e-05,98330.0,98329.0,0.11706714]
[1733922302230,8.59e-05,98330.0,98329.0,0.32046514]
[1733922302438,8.59e-05,98330.0,98329.0,0.11706714]
[1733922304875,8.59e-05,98330.0,98329.0,0.69083038]
[1733922305087,8.59e-05,98330.0,98329.0,0.71383038]
[1733922305305,8.59e-05,98330.0,98329.0,0.86383038]
[1733922305540,8.59e-05,98330.0,98329.0,1.01383038]
[1733922306244,8.59e-05,98360.0,98329.0,1.01383038]
[1733922306245,8.59e-05,98360.0,98359.0,0.45305376]
[1733922306455,8.59e-05,98360.0,98359.0,0.688279]
[1733922306672,8.59e-05,98360.0,98359.0,0.69559172]
[1733922307529,0.00020361,98360.0,98359.0,0.71859172]
[1733922307737,0.00120361,98360.0,98359.0,0.72759172]
[1733922308367,0.00120361,98360.0,98359.0,0.72359172]
[1733922308574,0.00020361,98360.0,98359.0,0.71859172]
[1733922309223,0.00020361,98360.0,98359.0,0.86859172]
[1733922309876,0.00120361,98360.0,98359.0,0.87359172]
[1733922310317,0.00120361,98360.0,98359.0,1.02759172]
[1733922310536,0.11911819,98400.0,98396.0,0.14004]
[1733922310749,0.203254,98399.0,98397.0,0.0072063]
[1733922311159,0.01355081,98400.0,98399.0,0.10967776]
[1733922311390,0.01355081,98400.0,98399.0,0.25691945]
[1733922311817,0.01855081,98400.0,98399.0,0.25691945]
[1733922312229,0.01355081,98400.0,98399.0,0.25691945]
[1733922314232,0.01655081,98400.0,98399.0,0.25691945]
[1733922314444,0.01855081,98400.0,98399.0,0.25691945]
[1733922314855,0.01555081,98400.0,98399.0,0.25691945]
[1733922315059,0.01355081,98400.0,98399.0,0.25691945]
[1733922315295,0.01455081,98400.0,98399.0,0.25691945]
[1733922316598,0.01655081,98400.0,98399.0,0.25691945]
[1733922316802,0.01355081,98400.0,98399.0,0.25691945]
[1733922317013,0.01455081,98400.0,98399.0,0.25691945]
[1733922317218,0.01655081,98400.0,98399.0,0.25691945]
[1733922317650,0.01755081,98400.0,98399.0,0.25691945]
[1733922318067,0.01355081,98400.0,98399.0,0.25691945]
[1733922318272,0.01555081,98400.0,98399.0,0.25691945]
[1733922318689,0.01655081,98400.0,98399.0,0.25691945]
[1733922319721,0.01455081,98400.0,98399.0,0.25691945]
[1733922319920,0.01555081,98400.0,98399.0,0.25691945]
[1733922320319,0.01355081,98400.0,98399.0,0.25691945]
[1733922325892,0.01355081,98400.0,98399.0,0.14724169]
[1733922326097,0.01355081,98400.0,98399.0,0.25691945]
[1733922327343,0.01355081,98400.0,98399.0,0.00720169]
[1733922327564,0.01355081,98400.0,98386.0,0.22234]
[1733922327565,0.01355081,98400.0,98389.0,0.10967776]
[1733922327773,0.15,98395.0,98389.0,0.10967776]
[1733922327982,0.203272,98390.0,98389.0,0.10967776]
[1733922328428,0.353272,98390.0,98389.0,0.10967776]
[1733922329011,0.00555252,98400.0,98399.0,0.14004]
[1733922329197,0.00025151,98400.0,98399.0,0.33061776]
[1733922329683,0.01673945,98400.0,98399.0,0.33061776]
[1733922329932,0.02173945,98400.0,98399.0,0.33061776]
[1733922330182,0.01873945,98400.0,98399.0,0.33061776]
[1733922330659,0.203254,98399.0,98398.0,0.10967776]
[1733922330901,0.203258,98397.0,98396.0,0.10967776]
[1733922332982,0.20326,98396.0,98395.0,0.10967776]
[1733922333476,0.15,98393.0,98384.0,0.14004]
[1733922333751,0.353291,98381.0,98380.0,0.10967776]
[1733922333991,0.203284,98385.0,98382.0,0.10967776]
[1733922334229,0.203284,98385.0,98378.0,0.0783]
[1733922334230,0.353283,98385.0,98384.0,0.24971776]
[1733922335226,0.353283,98385.0,98378.0,0.0783]
[1733922335227,0.15,98387.0,98386.0,0.14004]
[1733922335744,0.353266,98393.0,98392.0,0.21874]
[1733922336013,0.357266,98393.0,98392.0,0.21874]
[1733922336274,0.366567,98393.0,98392.0,0.21874]
[1733922337294,0.368567,98393.0,98392.0,0.21874]
[1733922338532,0.369567,98393.0,98392.0,0.21874]
[1733922339038,0.371567,98393.0,98392.0,0.21874]
[1733922339300,0.367567,98393.0,98392.0,0.21874]
[1733922339520,0.39815105,98393.0,98392.0,0.21874]
[1733922339722,0.40015105,98393.0,98392.0,0.21874]
[1733922339932,0.39915105,98393.0,98392.0,0.21874]
[1733922340359,0.40015105,98393.0,98392.0,0.21874]
[1733922340848,0.40115105,98393.0,98392.0,0.21874]
[1733922343373,0.40015105,98393.0,98392.0,0.21874]
[1733922343614,0.39815105,98393.0,98392.0,0.21874]
[1733922343851,0.40015105,98393.0,98392.0,0.21874]
[1733922344330,0.39915105,98393.0,98392.0,0.21874]
[1733922344575,0.40015105,98393.0,98392.0,0.21874]
[1733922345324,0.39915105,98393.0,98392.0,0.21874]
[1733922345566,0.40015105,98393.0,98392.0,0.21874]
[1733922345808,0.39915105,98393.0,98392.0,0.21874]
[1733922346056,0.40015105,98393.0,98392.0,0.21874]
[1733922346556,0.39915105,98393.0,98392.0,0.21874]
[1733922347251,0.40015105,98393.0,98392.0,0.21874]
[1733922347769,0.39915105,98393.0,98392.0,0.21874]
[1733922348494,0.40015105,98393.0,98392.0,0.21874]
[1733922348732,0.39815105,98393.0,98392.0,0.21874]
[1733922348970,0.39915105,98393.0,98392.0,0.21874]
[1733922349686,0.40015105,98393.0,98392.0,0.21874]
[1733922349926,0.39815105,98393.0,98392.0,0.21874]
[1733922350198,0.39915105,98393.0,98392.0,0.21874]
[1733922350671,0.39915105,98393.0,98392.0,0.14004]
[1733922351156,0.39915105,98393.0,98392.0,0.0049272]
[1733922351687,0.15,98392.0,98391.0,0.10967776]
[1733922351894,0.18158405,98392.0,98391.0,0.10967776]
[1733922352418,0.18158405,98392.0,98391.0,0.18727776]
[1733922352690,0.014301,98393.0,98392.0,0.24971776]
[1733922352939,0.013301,98393.0,98392.0,0.432643]
[1733922353190,0.00025151,98400.0,98399.0,0.24971776]
[1733922353448,0.00025151,98400.0,98399.0,0.685597]
[1733922354501,0.00025151,98400.0,98399.0,0.835597]
[1733922354768,0.00025151,98400.0,98399.0,0.838597]
[1733922355245,0.00125151,98400.0,98399.0,0.84862175]
[1733922355484,0.00225151,98400.0,98399.0,0.85462175]
[1733922355966,0.00325151,98400.0,98399.0,0.86362175]
[1733922356209,0.00225151,98400.0,98399.0,0.84862175]
[1733922356411,0.00325151,98400.0,98399.0,0.85762175]
[1733922356918,0.00225151,98400.0,98399.0,0.85162175]
[1733922357184,0.00325151,98400.0,98399.0,0.85762175]
[1733922357716,0.00025151,98400.0,98399.0,0.84262175]
[1733922357976,0.00125151,98400.0,98399.0,0.85162175]
[1733922358241,0.00125151,98400.0,98399.0,0.84862175]
[1733922358242,0.00225151,98400.0,98399.0,0.84862175]
[1733922358481,0.00125151,98400.0,98399.0,0.84262175]
[1733922358729,0.00225151,98400.0,98399.0,0.49836775]
[1733922358971,0.00125151,98400.0,98399.0,0.49536775]
[1733922359211,0.00125151,98400.0,98399.0,0.50436775]
[1733922359212,0.00225151,98400.0,98399.0,0.50436775]
[1733922360176,0.00125151,98400.0,98399.0,0.49836775]
[1733922360677,0.00225151,98400.0,98399.0,0.50436775]
[1733922360930,0.00125151,98400.0,98399.0,0.49536775]
[1733922361184,0.00225151,98400.0,98399.0,0.50436775]
[1733922361710,0.00325151,98400.0,98399.0,0.51336775]
[1733922367959,0.00325151,98400.0,98399.0,0.28074251]
[1733922368200,0.00325151,98400.0,98399.0,0.17106475]
[1733922368448,0.00325151,98400.0,98399.0,0.14070251]
[1733922368692,0.01606554,98400.0,98399.0,0.03102475]
[1733922368951,0.01306554,98400.0,98399.0,0.00702475]
[1733922369192,0.01306554,98400.0,98399.0,0.00802475]
[1733922369443,0.01306554,98400.0,98399.0,0.01002475]
[1733922370453,0.01306554,98400.0,98399.0,0.01898475]
[1733922370701,0.08456554,98400.0,98399.0,0.01698475]
[1733922370951,0.15,98387.0,98380.0,0.10967776]
[1733922371229,0.09587511,98400.0,98368.0,0.14004]
[1733922371230,0.203312,98371.0,98368.0,0.14004]
[1733922371473,0.203312,98371.0,98370.0,0.24971776]
[1733922371741,0.406624,98371.0,98370.0,0.24971776]
[1733922374175,0.406624,98371.0,98370.0,0.25471776]
[1733922374681,0.406624,98371.0,98370.0,0.25671776]
[1733922374930,0.41906588,98371.0,98370.0,0.25671776]
[1733922377534,0.41906588,98371.0,98370.0,0.25471776]
[1733922377751,0.41906588,98371.0,98370.0,0.24971776]
[1733922377956,0.41906588,98371.0,98370.0,0.25727421]
[1733922378169,0.41906588,98371.0,98370.0,0.25927421]
[1733922378420,0.41906588,98371.0,98370.0,0.14659645]
[1733922378628,0.56906588,98371.0,98370.0,0.14659645]
[1733922378839,0.58797546,98371.0,98370.0,0.14859645]
[1733922379047,0.58797546,98371.0,98370.0,0.25827421]
[1733922379984,0.58797546,98371.0,98370.0,0.00755645]
[1733922380416,0.58797546,98371.0,98370.0,0.003]
[1733922380624,0.58797546,98371.0,98370.0,0.001]
[1733922380833,0.15,98370.0,98364.0,0.10967776]
[1733922381065,0.353324,98365.0,98364.0,0.10967776]
[1733922381317,0.37223358,98365.0,98364.0,0.10967776]
[1733922381526,0.353324,98365.0,98364.0,0.10967776]
[1733922381959,0.15,98364.0,98363.0,0.10967776]
[1733922382864,0.22723939,98364.0,98363.0,0.10967776]
[1733922383077,0.15,98364.0,98363.0,0.10967776]
[1733922383970,0.15,98364.0,98363.0,0.11467776]
[1733922384179,0.15,98364.0,98363.0,0.11667776]
[1733922385245,0.15,98368.0,98367.0,0.14004]
[1733922385457,0.16244188,98371.0,98370.0,0.10967776]
[1733922385908,0.15,98371.0,98370.0,0.11623944]
[1733922387221,0.203285,98384.0,98377.0,0.10967776]
[1733922387438,0.32767976,98400.0,98389.0,0.32971776]
[1733922387439,0.11903229,98390.0,98389.0,0.32971776]
[1733922387665,0.203261,98396.0,98389.0,0.32971776]
[1733922387871,0.203268,98392.0,98389.0,0.33625829]
[1733922388080,0.203268,98392.0,98389.0,0.32971776]
[1733922388291,0.203272,98390.0,98389.0,0.32971776]
[1733922388796,0.203272,98390.0,98378.0,0.10532524]
[1733922388797,0.353287,98383.0,98382.0,0.24971776]
[1733922389071,0.353287,98383.0,98372.0,0.24971776]
[1733922389072,0.203307,98373.0,98372.0,0.24971776]
[1733922389357,0.203304,98375.0,98372.0,0.24971776]
[1733922389597,0.26903229,98382.0,98372.0,0.24971776]
[1733922389598,0.203302,98376.0,98372.0,0.24971776]
[1733922389887,0.203291,98381.0,98380.0,0.24971776]
[1733922390174,0.37216135,98381.0,98380.0,0.24971776]
[1733922394878,0.37216135,98381.0,98380.0,0.14004]
[1733922395135,0.15,98372.0,98370.0,0.10984956]
[1733922395375,0.203311,98371.0,98370.0,0.10984956]
[1733922395619,0.37218135,98371.0,98370.0,0.24988956]
[1733922397177,0.01887035,98371.0,98370.0,0.24988956]
[1733922397389,0.15,98373.0,98370.0,0.24988956]
[1733922397390,0.37217835,98373.0,98372.0,0.14004]
[1733922397598,0.37217835,98373.0,98372.0,0.24971776]
[1733922397783,0.37214191,98373.0,98372.0,0.24971776]
[1733922398479,0.38480929,98373.0,98372.0,0.14004]
[1733922400254,0.38480929,98373.0,98372.0,0.24971776]
[1733922400466,0.38480929,98373.0,98372.0,0.25627677]
[1733922402272,0.38480929,98373.0,98372.0,0.14659901]
[1733922404556,0.41644778,98373.0,98372.0,0.14659901]
[1733922408234,0.06313978,98373.0,98372.0,0.14659901]
[1733922408487,0.203283,98385.0,98372.0,0.14659901]
[1733922408488,0.01883391,98376.0,98375.0,0.14004]
[1733922408764,0.0504868,98382.0,98375.0,0.430643]
[1733922409001,0.203282,98386.0,98381.0,0.10967776]
[1733922409261,0.203282,98386.0,98376.0,0.10532524]
[1733922409262,0.406564,98386.0,98385.0,0.10967776]
[1733922409503,0.42535891,98386.0,98385.0,0.10967776]
[1733922410518,0.58035891,98386.0,98385.0,0.10967776]
[1733922410743,0.57535891,98386.0,98385.0,0.10967776]
[1733922411019,0.58038425,98386.0,98385.0,0.11067776]
[1733922411268,0.58338425,98386.0,98385.0,0.11067776]
[1733922412519,0.59541347,98386.0,98385.0,0.11067776]
[1733922414298,0.17002922,98386.0,98385.0,0.11067776]
[1733922414507,0.03882996,98386.0,98385.0,0.32871776]
[1733922414729,0.008,98386.0,98385.0,0.480643]
[1733922414953,0.008,98386.0,98385.0,0.48718824]
[1733922415830,0.003,98386.0,98385.0,0.48618824]
[1733922416051,0.01237469,98389.0,98388.0,0.10967776]
[1733922416284,0.01237469,98389.0,98388.0,0.215003]
[1733922416498,0.03721278,98394.0,98388.0,0.215003]
[1733922416724,0.01860441,98394.0,98389.0,0.10532524]
[1733922416968,0.01860441,98393.0,98389.0,0.1118645]
[1733922417190,0.01860441,98394.0,98393.0,0.10967776]
[1733922417616,0.01860441,98394.0,98393.0,0.11621291]
[1733922419424,0.02060441,98394.0,98393.0,0.11621291]
[1733922419634,0.01859339,98394.0,98393.0,0.11621291]
[1733922419846,0.01959339,98394.0,98393.0,0.11621291]
[1733922420275,0.01859339,98394.0,98393.0,0.11621291]
[1733922420923,0.16859339,98394.0,98393.0,0.00653515]
[1733922421351,0.16859339,98394.0,98390.0,0.10967776]
[1733922421352,0.406532,98393.0,98390.0,0.10967776]
[1733922421562,0.29128501,98392.0,98390.0,0.10967776]
[1733922421775,0.40348939,98391.0,98390.0,0.10967776]
[1733922421989,0.15,98390.0,98389.0,0.14004]
[1733922422137,0.20021939,98390.0,98389.0,0.14004]
[1733922422755,0.353295,98379.0,98372.0,0.077]
[1733922422981,0.353295,98379.0,98378.0,0.10967776]
[1733922423189,0.49453383,98379.0,98378.0,0.10967776]
[1733922423535,0.49453383,98379.0,98374.0,0.14004]
[1733922423536,0.2033,98377.0,98374.0,0.14004]
[1733922423750,0.15,98374.0,98373.0,0.14004]
[1733922423964,0.16856029,98374.0,98373.0,0.24971776]
[1733922425495,0.16856029,98374.0,98373.0,0.14004]
[1733922425745,0.18114921,98374.0,98373.0,0.24971776]
[1733922427877,0.03114921,98374.0,98373.0,0.24971776]
[1733922428091,0.15,98380.0,98373.0,0.24971776]
[1733922428092,0.01865655,98380.0,98379.0,0.24971776]
[1733922428350,0.15,98385.0,98384.0,0.14004]
[1733922428351,0.16865655,98385.0,98384.0,0.14004]
[1733922428571,0.16865655,98385.0,98384.0,0.24971776]
[1733922428782,0.16858901,98385.0,98384.0,0.24941776]
[1733922428989,0.18100322,98385.0,98384.0,0.24941776]
[1733922429415,0.18100322,98385.0,98384.0,0.13974]
[1733922429882,0.18100322,98385.0,98384.0,0.24941776]
[1733922430096,0.21762036,98385.0,98384.0,0.24941776]
[1733922430542,0.18600322,98385.0,98384.0,0.25550793]
[1733922430784,0.18800322,98385.0,98384.0,0.25550793]
[1733922431010,0.18800322,98385.0,98384.0,0.40683317]
[1733922431011,0.02558901,98385.0,98384.0,0.40683317]
[1733922431217,0.007,98385.0,98384.0,0.48343317]
[1733922433674,0.019417,98385.0,98384.0,0.48343317]
[1733922434281,0.017417,98385.0,98384.0,0.48343317]
[1733922434483,0.012417,98385.0,98384.0,0.48343317]
[1733922434708,0.012417,98385.0,98384.0,0.48443317]
[1733922434934,0.012417,98385.0,98384.0,0.63443317]
[1733922435152,0.012417,98385.0,98384.0,0.63343317]
[1733922435567,0.012417,98385.0,98384.0,0.63543317]
[1733922435777,0.012417,98385.0,98384.0,0.63743317]
[1733922435999,0.012417,98385.0,98384.0,0.63543317]
[1733922436425,0.013417,98385.0,98384.0,0.64243317]
[1733922436887,0.013417,98385.0,98384.0,0.79043317]
[1733922437116,0.013417,98385.0,98384.0,0.79443317]
[1733922437815,0.013417,98385.0,98384.0,0.81743317]
[1733922438260,0.013417,98385.0,98384.0,0.79043317]
[1733922438683,0.00016561,98399.0,98384.0,0.79443317]
[1733922438897,0.00016561,98399.0,98398.0,0.830499]
[1733922439324,0.00016561,98399.0,98398.0,0.83656568]
[1733922439542,0.00016561,98399.0,98398.0,0.98656568]
[1733922440216,0.00016561,98399.0,98398.0,0.98756568]
[1733922440644,0.00016561,98399.0,98398.0,0.98656568]
[1733922440852,0.00116561,98399.0,98398.0,0.99556568]
[1733922441104,0.00216561,98399.0,98398.0,1.00156568]
[1733922441745,0.00116561,98399.0,98398.0,0.99556568]
[1733922442165,0.00116561,98399.0,98398.0,0.98656568]
[1733922442380,0.00016561,98399.0,98398.0,0.98656568]
[1733922442592,0.00016561,98399.0,98398.0,0.99556568]
[1733922443916,0.00016561,98399.0,98398.0,1.00056568]
[1733922447513,0.00016561,98399.0,98398.0,0.59088792]
[1733922447727,0.00016561,98399.0,98398.0,0.34163192]
[1733922448576,0.00016561,98399.0,98398.0,0.44630968]
[1733922448837,0.00016561,98399.0,98398.0,0.44130968]
[1733922449040,0.00016561,98399.0,98398.0,0.44630968]
[1733922449250,0.00016561,98399.0,98398.0,0.44130968]
[1733922449450,0.00016561,98399.0,98398.0,0.43730968]
[1733922449656,0.00016561,98399.0,98398.0,0.44630968]
[1733922450190,0.00016561,98399.0,98398.0,0.33163192]
[1733922450400,0.00016561,98399.0,98398.0,0.36980968]
[1733922451014,0.00016561,98399.0,98398.0,0.36580968]
[1733922451429,0.00016561,98399.0,98398.0,0.36980968]
[1733922451852,0.00016561,98399.0,98398.0,0.36080968]
[1733922452061,0.00016561,98399.0,98398.0,0.36680968]